[Event "Turkish-ch Youth U15 2024"]
[Site "Belek Antalya"]
[Date "2024.01.25"]
[Round "7"]
[White "Sezer, Ipek"]
[Black "Gorucu, Yagmur"]
[Result "1-0"]
[ECO "A42"]
[WhiteElo "1299"]
[BlackElo "1222"]
[Annotator "NA RC COMBH"]
[PlyCount "91"]
[EventDate "2024.01.21"]
[EventType "swiss"]
[EventCountry "TUR"]
[SourceTitle "playchess.com"]
[Source "ChessBase"]
[SourceQuality "1"]
[TimeControl "5400+30"]

1. d4 {[%emt 0:01:00]} d6 {[%emt 0:01:00]} 2. c4 {[%emt 0:00:30]} g6 {[%emt 0:00:30]} 3. Nc3 {[%emt 0:00:30]} Bg7 {[%emt 0:00:30]} 4. e4 {[%emt 0:00:30]} Nc6 {[%emt 0:00:00]} 5. Be3 {[%emt 0:00:00]} e5 {[%emt 0:00:00]} 6. d5 {[%emt 0:00:00]} Nce7 {[%emt 0:00:30]} 7. Nge2 {[%emt 0:00:30]} f5 {[%emt 0:00:00]} 8. f4 {[%emt 0:00:30]} Nf6 {[%emt 0:02:00]} 9. exf5 {[%emt 0:03:30]} gxf5 {[%emt 0:01:30]} 10. h3 {[%emt 0:15:30]} a6 {[%emt 0:04:30]} 11. Ng3 {[%emt 0:10:30]} Rb8 {[%emt 0:09:30]} 12. fxe5 {[%emt 0:19:30]} dxe5 {[%emt 0:01:30]} 13. Bg5 {[%emt 0:00:30]} Qd6 {[%emt 0:06:30]} 14. Qd2 {[%emt 0:05:30]} f4 {[%emt 0:11:30]} 15. Bxf6 {[%emt 0:03:30]} Qxf6 {[%emt 0:01:30]} 16. Nge4 {[%emt 0:00:00]} Qh4+ {[%emt 0:01:30]} 17. Qf2 {[%emt 0:00:00]} Qxf2+ {[%emt 0:00:30]} 18. Kxf2 {[%emt 0:00:00]} Nf5 {[%emt 0:01:30]} 19. a4 {[%emt 0:01:00]} b6 {[%emt 0:09:30]} 20. Be2 {[%emt 0:04:30]} O-O {[%emt 0:03:30]} 21. Rhe1 {[%emt 0:04:30]} Ne3 {[%emt 0:01:30]} 22. Bd3 {[%emt 0:01:30]} Bb7 {[%emt 0:10:30]} 23. Ng5 {[%emt 0:05:30]} Bh6 {[%emt 0:03:30]} 24. Nce4 {[%emt 0:00:30]} Bc8 {[%emt 0:03:30]} 25. g3 {[%emt 0:03:30]} Bf5 {[%emt 0:02:30]} 26. gxf4 {[%emt 0:00:30]} exf4 {[%emt 0:04:30]} 27. Rg1 {[%emt 0:00:30]} Kh8 {[%emt 0:00:37]} 28. Be2 {[%emt 0:05:23]} Bg6 {[%emt 0:03:00]} 29. Nd2 {[%emt 0:01:44]} Bxg5 {[%emt 0:01:23]} 30. Rxg5 {[%emt 0:00:02]} Rbe8 {[%emt 0:02:34]} 31. Nf3 {[%emt 0:00:48]} Rf5 {[%emt 0:03:10]} 32. Rag1 {[%emt 0:00:28]} Rxg5 {[%emt 0:01:30]} 33. Rxg5 {[%emt 0:00:30]} Nc2 {[%emt 0:02:21]} 34. h4 {[%emt 0:00:52]} Rf8 {[%emt 0:02:18]} 35. h5 {[%emt 0:02:14]} Be4 {[%emt 0:00:43]} 36. Ne5 {[%emt 0:01:35]} f3 {[%emt 0:01:49]} 37. Bxf3 {[%emt 0:04:59]} Bxf3 {[%emt 0:00:30]} 38. Nxf3 {[%emt 0:00:30]} Nd4 {[%emt 0:00:30]} 39. Rg3 {[%emt 0:00:30]} a5 {[%emt 0:00:00]} 40. Rh3 {[%emt 0:00:34]} h6 {[%emt 0:00:42]} 41. Ke3 {[%emt 0:00:33]} Rxf3+ {[%emt 0:00:30]} 42. Rxf3 {[%emt 0:00:30]} Nxf3 {[%emt 0:00:30]} 43. Kxf3 {[%emt 0:00:00]} Kg8 {[%emt 0:00:55]} 44. Kg4 {[%emt 0:02:15]} Kf8 {[%emt 0:00:33]} 45. Kf5 {[%emt 0:00:09]} Kf7 {[%emt 0:03:12]} 46. b3 {[%emt 0:00:05]} 1-0

[Event "Turkish-ch Youth U15 2024"]
[Site "Belek Antalya"]
[Date "2024.01.25"]
[Round "7"]
[White "Iyican, Sude"]
[Black "Nurdogan, Irmak Tuanna"]
[Result "1-0"]
[ECO "E40"]
[WhiteElo "1133"]
[BlackElo "1100"]
[Annotator "NA RC COMBH"]
[PlyCount "130"]
[EventDate "2024.01.21"]
[EventType "swiss"]
[EventCountry "TUR"]
[SourceTitle "playchess.com"]
[Source "ChessBase"]
[SourceQuality "1"]
[TimeControl "5400+30"]

1. d4 {[%emt 0:01:00]} Nf6 {[%emt 0:02:00]} 2. c4 {[%emt 0:00:30]} e6 {[%emt 0:00:30]} 3. Nc3 {[%emt 0:00:30]} Bb4 {[%emt 0:00:30]} 4. e3 {[%emt 0:00:00]} Bxc3+ {[%emt 0:02:30]} 5. bxc3 {[%emt 0:00:00]} O-O {[%emt 0:00:30]} 6. Bd3 {[%emt 0:00:00]} d5 {[%emt 0:00:30]} 7. cxd5 {[%emt 0:00:00]} exd5 {[%emt 0:00:30]} 8. Ne2 {[%emt 0:00:30]} b6 {[%emt 0:01:30]} 9. O-O {[%emt 0:00:30]} c5 {[%emt 0:05:30]} 10. c4 {[%emt 0:05:30]} Na6 {[%emt 0:18:30]} 11. cxd5 {[%emt 0:26:30]} Qxd5 {[%emt 0:02:30]} 12. Nf4 {[%emt 0:01:30]} Qg5 {[%emt 0:00:30]} 13. e4 {[%emt 0:30:30]} Qg4 {[%emt 0:20:30]} 14. e5 {[%emt 0:03:30]} Qxd1 {[%emt 0:02:30]} 15. Rxd1 {[%emt 0:00:30]} Nd7 {[%emt 0:00:30]} 16. e6 {[%emt 0:01:30]} fxe6 {[%emt 0:03:30]} 17. Nxe6 {[%emt 0:00:30]} Rf6 {[%emt 0:04:30]} 18. Bg5 {[%emt 0:02:30]} Rxe6 {[%emt 0:03:30]} 19. Bc4 {[%emt 0:00:30]} Nf8 {[%emt 0:00:30]} 20. Bf4 {[%emt 0:10:27]} Kh8 {[%emt 0:03:30]} 21. Bd5 {[%emt 0:00:38]} Nb4 {[%emt 0:08:10]} 22. Bxa8 {[%emt 0:00:39]} Nc2 {[%emt 0:00:23]} 23. Rab1 {[%emt 0:09:40]} Nxd4 {[%emt 0:00:18]} 24. Be3 {[%emt 0:00:45]} Re8 {[%emt 0:08:33]} 25. Bxd4 {[%emt 0:03:01]} cxd4 {[%emt 0:00:07]} 26. Rxd4 {[%emt 0:01:42]} Bf5 {[%emt 0:00:30]} 27. Bc6 {[%emt 0:00:30]} Rc8 {[%emt 0:00:00]} 28. Rc1 {[%emt 0:00:06]} Ne6 {[%emt 0:00:01]} 29. Rdc4 {[%emt 0:00:00]} Bd3 {[%emt 0:00:41]} 30. R4c3 {[%emt 0:00:50]} Nf4 {[%emt 0:00:15]} 31. Bf3 {[%emt 0:00:01]} Rg8 {[%emt 0:01:22]} 32. Rc8 {[%emt 0:00:58]} g6 {[%emt 0:00:30]} 33. Rxg8+ {[%emt 0:00:30]} Kxg8 {[%emt 0:00:30]} 34. Rc8+ {[%emt 0:00:30]} Kg7 {[%emt 0:00:30]} 35. Rc7+ {[%emt 0:00:30]} Kh6 {[%emt 0:00:30]} 36. Rxa7 {[%emt 0:00:30]} Ne2+ {[%emt 0:00:30]} 37. Bxe2 {[%emt 0:00:30]} Bxe2 {[%emt 0:00:30]} 38. f3 {[%emt 0:00:30]} b5 {[%emt 0:00:30]} 39. Kf2 {[%emt 0:00:30]} Bc4 {[%emt 0:00:30]} 40. h4 {[%emt 0:00:30]} Be6 {[%emt 0:00:30]} 41. a3 {[%emt 0:00:00]} Bg8 {[%emt 0:00:00]} 42. Rb7 {[%emt 0:00:00]} Bc4 {[%emt 0:00:00]} 43. g4 {[%emt 0:00:02]} g5 {[%emt 0:00:19]} 44. hxg5+ {[%emt 0:00:30]} Kxg5 {[%emt 0:00:30]} 45. Rxh7 {[%emt 0:00:00]} Kf6 {[%emt 0:00:00]} 46. f4 {[%emt 0:00:13]} Kg6 {[%emt 0:00:25]} 47. Rb7 {[%emt 0:00:30]} Kf6 {[%emt 0:00:30]} 48. Rb6+ {[%emt 0:00:30]} Kg7 {[%emt 0:00:30]} 49. Ke3 {[%emt 0:00:30]} Kf7 {[%emt 0:00:30]} 50. Kd4 {[%emt 0:00:30]} Bf1 {[%emt 0:00:00]} 51. Kc5 {[%emt 0:00:00]} Kg7 {[%emt 0:00:00]} 52. Rxb5 {[%emt 0:00:00]} Bxb5 {[%emt 0:00:00]} 53. Kxb5 {[%emt 0:00:02]} Kf6 {[%emt 0:00:00]} 54. a4 {[%emt 0:00:12]} Kg6 {[%emt 0:00:21]} 55. a5 {[%emt 0:00:30]} Kf6 {[%emt 0:00:30]} 56. a6 {[%emt 0:00:30]} Ke6 {[%emt 0:00:00]} 57. a7 {[%emt 0:00:00]} Kd5 {[%emt 0:00:00]} 58. a8=Q+ {[%emt 0:00:00]} Kd4 {[%emt 0:00:00]} 59. Qe8 {[%emt 0:00:00]} Kd3 {[%emt 0:00:00]} 60. f5 {[%emt 0:00:00]} Kd4 {[%emt 0:00:06]} 61. f6 {[%emt 0:00:21]} Kd3 {[%emt 0:00:30]} 62. f7 {[%emt 0:00:30]} Kd4 {[%emt 0:00:30]} 63. f8=Q {[%emt 0:00:30]} Kd3 {[%emt 0:00:00]} 64. Qd6+ {[%emt 0:00:00]} Kc3 {[%emt 0:00:00]} 65. Qe3+ {[%emt 0:00:00]} Kb2 {[%emt 0:00:00]} 1-0

[Event "Turkish-ch Youth U15 2024"]
[Site "Belek Antalya"]
[Date "2024.01.26"]
[Round "8"]
[White "Yalcinkaya, Efe"]
[Black "Sakmak, Kutay"]
[Result "1-0"]
[ECO "C04"]
[WhiteElo "2067"]
[BlackElo "1971"]
[Annotator "TA"]
[PlyCount "53"]
[EventDate "2024.01.21"]
[EventType "swiss"]
[EventCountry "TUR"]
[SourceTitle "playchess.com"]
[Source "ChessBase"]
[SourceQuality "1"]
[TimeControl "5400+30"]

{[%evp 12,53,29,37,68,61,74,81,80,79,87,106,147,144,137,121,293,125,170,139,145,127,609,451,395,408,399,394,812,619,600,345,1060,652,608,596,684,487,485,498,29997,203,29998,29999]} 1. e4 {[%emt 0:01:00]} e6 {[%emt 0:01:00]} 2. d4 {[%emt 0:00:30]} d5 {[%emt 0:00:30]} 3. Nd2 {[%emt 0:00:30][%cal Bb1d2,Bd2b3,Bb3d4][%mdl 32]} Nc6 {[%emt 0:00:30]} 4. Ngf3 {[%emt 0:00:30]} Nf6 {[%emt 0:00:30]} 5. e5 {[%emt 0:00:30]} Nd7 {[%emt 0:00:30]} 6. Nb3 {[%emt 0:00:00]} f6 {[%emt 0:00:00]} 7. Bb5 {[%emt 0:00:00]} fxe5 {[%emt 0:01:00]} 8. dxe5 {[%emt 0:00:00]} Be7 {[%emt 0:05:30]} 9. Nbd4 {[%emt 0:02:00]} Ndb8 {[%emt 0:00:30] White is better.} 10. c3 {[%emt 0:00:30] White is more active.} a6 {[%emt 0:00:30]} 11. Bd3 {[%emt 0:00:30]} O-O {[%emt 0:05:30] [#]} 12. h4 $1 {[%emt 0:02:30] Black must now prevent Ng5.} Qe8 {[%emt 0:04:30]} 13. Rh3 {[%emt 0:06:30] Strongly threatening Qc2.} Qh5 $2 {[%emt 0:05:30] [#]} (13... Kh8 $16 {was called for.}) 14. Bg5 {[%emt 0:04:30]} (14. g4 $1 $18 {[%cal Rg4h5]} Qe8 (14... Qxg4 $2 15. Bxh7+ Kh8 16. Rg3 $18) 15. Qc2) 14... h6 {[%emt 0:07:30]} 15. Qc2 {[%emt 0:03:30]} Nxd4 {[%emt 0:15:30]} 16. cxd4 {[%emt 0:02:30]} (16. Bh7+ Kh8 17. cxd4 Nc6 $16 (17... hxg5 $2 18. Bg6 $18)) 16... Rxf3 $2 {[%emt 0:08:30][%mdl 8192]} (16... hxg5 17. Bg6 Qg4 18. hxg5 Qxg2 19. Bh7+ Kh8 20. Bf5+ Kg8 21. Nh4 $18 (21. Bh7+ Kh8 $18) (21. Bh7+ Kh8 $18)) (16... Nc6 $16) 17. Bh7+ {[%emt 0:04:30]} (17. Bxe7 $2 Rxh3 18. gxh3 Nc6 $19) 17... Kh8 {[%emt 0:00:30]} 18. Rxf3 {[%emt 0:00:00]} (18. Bxe7 $2 Rxh3 19. gxh3 Nc6 $19) 18... hxg5 {[%emt 0:00:30]} 19. Bg6 {[%emt 0:00:00]} Qg4 {[%emt 0:00:30]} (19... Bb4+ 20. Ke2 Nc6 21. Bxh5 Nxd4+ 22. Kd1 Nxc2) 20. hxg5 {[%emt 0:03:30]} Nc6 {[%emt 0:03:30]} 21. Rg3 {[%emt 0:05:30]} Qf4 {[%emt 0:18:30]} (21... Qxd4 22. Bf7 Qxe5+ (22... Nxe5 23. Rh3+) 23. Re3 Qh2 (23... Qxg5 24. Rh3+) 24. Rh3+ (24. Bxe6 $2 {too greedy.} Bb4+ 25. Rc3 Qg1+ 26. Kd2 Bxc3+ 27. bxc3 Qxf2+ 28. Kc1 Qxc2+ 29. Kxc2 Bxe6 $19) 24... Qxh3 25. gxh3 Bxg5) 22. Rh3+ {[%emt 0:00:30]} Kg8 {[%emt 0:00:30]} 23. Bh7+ {[%emt 0:00:30]} Kh8 {[%emt 0:00:00]} 24. Bg8+ {[%emt 0:02:30]} Kxg8 {[%emt 0:00:00]} 25. Qh7+ {[%emt 0:00:00]} Kf8 {[%emt 0:01:30]} (25... Kf7 $18) 26. Qh8+ {[%emt 0:00:00]} Kf7 {[%emt 0:00:30] [#] And now ...Qe4+ would win.} 27. g6+ $1 {[%emt 0:00:00][%mdl 512] Weighted Error Value: White=1.03/Black=0.85.  Loses game:     	---       	Black=2      Missed win:     	White=1     	---        Mistake:       	---       	Black=2      Inaccurate:     	---       	Black=3      OK:         	White=5     	Black=3      Best:        	White=1     	Black=6} 1-0

[Event "Turkish-ch Youth U15 2024"]
[Site "Belek Antalya"]
[Date "2024.01.26"]
[Round "8"]
[White "Basdar, Atakan"]
[Black "Biyiksiz, Ali Batuhan"]
[Result "0-1"]
[ECO "C68"]
[WhiteElo "1746"]
[BlackElo "2164"]
[Annotator "RC"]
[PlyCount "88"]
[EventDate "2024.01.21"]
[EventType "swiss"]
[EventCountry "TUR"]
[SourceTitle "playchess.com"]
[Source "ChessBase"]
[SourceQuality "1"]
[TimeControl "5400+30"]

1. e4 {[%emt 0:02:00]} e5 {[%emt 0:01:00]} 2. Nf3 {[%emt 0:00:30]} Nc6 {[%emt 0:00:30]} 3. Bb5 {[%emt 0:00:00]} a6 {[%emt 0:00:00]} 4. Bxc6 {[%emt 0:00:00]} dxc6 {[%emt 0:00:00]} 5. O-O {[%emt 0:00:00]} Bg4 {[%emt 0:00:00]} 6. h3 {[%emt 0:00:00]} h5 {[%emt 0:00:00]} 7. d3 {[%emt 0:00:30]} Qf6 {[%emt 0:01:30]} 8. Nbd2 {[%emt 0:00:30]} g5 {[%emt 0:00:30]} 9. Nc4 {[%emt 0:03:30]} Bxf3 {[%emt 0:00:30]} 10. Qxf3 {[%emt 0:00:30]} Qxf3 {[%emt 0:00:30]} 11. gxf3 {[%emt 0:00:30]} f6 {[%emt 0:00:00]} 12. h4 {[%emt 0:02:30]} gxh4 {[%emt 0:00:00]} 13. f4 {[%emt 0:00:30]} exf4 {[%emt 0:00:30]} 14. Bxf4 {[%emt 0:00:30]} O-O-O {[%emt 0:00:30]} 15. Kh2 {[%emt 0:02:30]} Bc5 {[%emt 0:37:30]} 16. Be3 {[%emt 0:09:30]} Bf8 {[%emt 0:06:30]} 17. Kh3 {[%emt 0:04:30]} Kd7 {[%emt 0:08:30]} 18. Kxh4 {[%emt 0:02:30]} Ne7 {[%emt 0:05:30]} 19. Rg1 {[%emt 0:01:30]} Ke6 {[%emt 0:01:30]} 20. f4 {[%emt 0:11:30]} f5 {[%emt 0:26:46]} 21. Ne5 {[%emt 0:01:30]} Rg8 {[%emt 0:00:18]} 22. Rxg8 {[%emt 0:10:30]} Nxg8 {[%emt 0:00:30]} 23. Ng6 {[%emt 0:03:30]} Nf6 {[%emt 0:01:12]} 24. e5 {[%emt 0:04:30]} Ng4 {[%emt 0:07:28]} 25. Bd2 {[%emt 0:01:30]} Bc5 {[%emt 0:00:43]} 26. Kxh5 {[%emt 0:03:30]} Rd7 {[%emt 0:00:11]} 27. b4 {[%emt 0:00:30]} Rh7+ {[%emt 0:00:30]} 28. Kg5 {[%emt 0:00:00]} Nh6 {[%emt 0:00:25]} 29. Kh4 {[%emt 0:02:00]} Bf2+ {[%emt 0:00:30]} 30. Kh3 {[%emt 0:00:30]} Ng4+ {[%emt 0:00:30]} 31. Kg2 {[%emt 0:00:30]} Rg7 {[%emt 0:00:30]} 32. Rh1 {[%emt 0:00:30]} Rxg6 {[%emt 0:00:30]} 33. Rh8 {[%emt 0:00:30]} Bb6 {[%emt 0:00:30]} 34. Re8+ {[%emt 0:00:00]} Kf7 {[%emt 0:00:01]} 35. Rb8 {[%emt 0:00:00]} Nxe5+ {[%emt 0:00:37]} 36. Kf1 {[%emt 0:00:30]} Nf3 {[%emt 0:00:30]} 37. Bc3 {[%emt 0:00:30]} Nh2+ {[%emt 0:00:30]} 38. Ke2 {[%emt 0:00:30]} Rg2+ {[%emt 0:00:30]} 39. Kd1 {[%emt 0:00:30]} Rg1+ {[%emt 0:00:30]} 40. Ke2 {[%emt 0:00:30]} Ng4 {[%emt 0:00:30]} 41. Bd2 {[%emt 0:00:00]} Ra1 {[%emt 0:01:28]} 42. c4 {[%emt 0:00:00]} c5 {[%emt 0:00:30]} 43. bxc5 {[%emt 0:00:00]} Bxc5 {[%emt 0:00:25]} 44. Rxb7 {[%emt 0:00:00]} Be7 {[%emt 0:00:35]} 0-1

[Event "Turkish-ch Youth U15 2024"]
[Site "Belek Antalya"]
[Date "2024.01.26"]
[Round "8"]
[White "Sozat, Arda"]
[Black "Dirikolu, Deniz"]
[Result "1/2-1/2"]
[ECO "C60"]
[WhiteElo "1721"]
[BlackElo "1786"]
[Annotator "NA RC COMBH"]
[PlyCount "89"]
[EventDate "2024.01.21"]
[EventType "swiss"]
[EventCountry "TUR"]
[SourceTitle "playchess.com"]
[Source "ChessBase"]
[SourceQuality "1"]
[TimeControl "5400+30"]

1. e4 {[%emt 0:01:00]} e5 {[%emt 0:01:00]} 2. Nf3 {[%emt 0:00:00]} Nc6 {[%emt 0:00:30]} 3. Bb5 {[%emt 0:00:00]} g6 {[%emt 0:00:00]} 4. d4 {[%emt 0:01:30]} exd4 {[%emt 0:00:00]} 5. c3 {[%emt 0:00:00]} a6 {[%emt 0:00:30]} 6. Bc4 {[%emt 0:00:00]} Bg7 {[%emt 0:00:30]} 7. cxd4 {[%emt 0:00:30]} Nge7 {[%emt 0:01:30]} 8. O-O {[%emt 0:01:30]} d6 {[%emt 0:00:30]} 9. h3 {[%emt 0:01:30]} O-O {[%emt 0:00:30]} 10. Nc3 {[%emt 0:10:30]} h6 {[%emt 0:01:30]} 11. a3 {[%emt 0:00:30]} Kh7 {[%emt 0:00:30]} 12. d5 {[%emt 0:04:30]} Nb8 {[%emt 0:05:30]} 13. Re1 {[%emt 0:03:30]} Nd7 {[%emt 0:00:30]} 14. Bf4 {[%emt 0:04:30]} Ne5 {[%emt 0:02:30]} 15. Nxe5 {[%emt 0:02:30]} dxe5 {[%emt 0:00:30]} 16. Be3 {[%emt 0:00:00]} f5 {[%emt 0:00:30]} 17. f3 {[%emt 0:01:00]} b6 {[%emt 0:05:30]} 18. a4 {[%emt 0:00:30]} Bb7 {[%emt 0:00:30]} 19. a5 {[%emt 0:01:30]} b5 {[%emt 0:00:30]} 20. Be2 {[%emt 0:00:30]} Nc8 {[%emt 0:00:00]} 21. Bc5 {[%emt 0:08:30]} Nd6 {[%emt 0:00:00]} 22. Qc2 {[%emt 0:14:30]} Rf7 {[%emt 0:08:30]} 23. Rf1 {[%emt 0:13:30]} Qg5 {[%emt 0:01:30]} 24. Qc1 {[%emt 0:02:30]} f4 {[%emt 0:01:30]} 25. Bf2 {[%emt 0:01:30]} Bf6 {[%emt 0:00:30]} 26. Kh2 {[%emt 0:11:32]} Qh5 {[%emt 0:02:30]} 27. Rh1 {[%emt 0:00:34]} b4 {[%emt 0:01:30]} 28. Na4 {[%emt 0:01:51]} Nxe4 {[%emt 0:00:30]} 29. fxe4 {[%emt 0:00:59]} Qxe2 {[%emt 0:00:30]} 30. Qe1 {[%emt 0:00:15]} Qc2 {[%emt 0:06:30]} 31. Nc5 {[%emt 0:04:04]} Bc8 {[%emt 0:11:30]} 32. b3 {[%emt 0:02:21]} Bh4 {[%emt 0:03:30]} 33. Bxh4 {[%emt 0:01:03]} Qxc5 {[%emt 0:00:00]} 34. Bf2 {[%emt 0:01:10]} Qc2 {[%emt 0:00:00]} 35. Rf1 {[%emt 0:01:42]} Rb8 {[%emt 0:01:30]} 36. Qb1 {[%emt 0:00:58]} Qe2 {[%emt 0:01:30]} 37. Ra2 {[%emt 0:00:30]} Qh5 {[%emt 0:00:00]} 38. Qd1 {[%emt 0:03:29]} Qg5 {[%emt 0:02:00]} 39. Qf3 {[%emt 0:01:18]} Rb5 {[%emt 0:03:30]} 40. Rc1 {[%emt 0:00:36]} Qd8 {[%emt 0:01:30]} 41. Rc6 {[%emt 0:00:45]} Qf8 {[%emt 0:07:30]} 42. Rac2 {[%emt 0:00:30]} Qg7 {[%emt 0:00:30]} 43. d6 {[%emt 0:00:20]} Rxa5 {[%emt 0:11:30]} 44. Rxc7 {[%emt 0:00:30]} Bd7 {[%emt 0:00:30]} 45. Ra7 {[%emt 0:01:52]} 1/2-1/2

[Event "Turkish-ch Youth U15 2024"]
[Site "Belek Antalya"]
[Date "2024.01.26"]
[Round "8"]
[White "Gebes, Ata"]
[Black "Tezcan, Alper"]
[Result "0-1"]
[ECO "C11"]
[WhiteElo "1662"]
[BlackElo "1868"]
[Annotator "NA RC COMBH"]
[PlyCount "68"]
[EventDate "2024.01.21"]
[EventType "swiss"]
[EventCountry "TUR"]
[SourceTitle "playchess.com"]
[Source "ChessBase"]
[SourceQuality "1"]
[TimeControl "5400+30"]

1. e4 {[%emt 0:01:00]} e6 {[%emt 0:01:00]} 2. d4 {[%emt 0:00:30]} d5 {[%emt 0:00:00]} 3. Nc3 {[%emt 0:00:00]} Nf6 {[%emt 0:00:00]} 4. e5 {[%emt 0:00:00]} Nfd7 {[%emt 0:00:30]} 5. Nce2 {[%emt 0:00:30]} c5 {[%emt 0:00:00]} 6. c3 {[%emt 0:00:00]} Nc6 {[%emt 0:00:00]} 7. Nf3 {[%emt 0:00:00]} Be7 {[%emt 0:03:30] 7...cxd4 is a critical line.} 8. a3 {[%emt 0:00:00] C11: French: Classical System: 4 e5 and 4 Bg5 dxe4.} Qa5 {[%emt 0:06:30]} 9. Bf4 {[%emt 0:04:00]} cxd4 {[%emt 0:07:30]} 10. Nexd4 {[%emt 0:01:30]} Nxd4 {[%emt 0:15:30]} 11. Nxd4 {[%emt 0:01:30]} a6 $146 {[%emt 0:05:30]} ({Predecessor:} 11... Qb6 12. Bd3 Nc5 13. Bb5+ Bd7 14. a4 Bxb5 15. axb5 O-O 16. O-O a6 17. Qg4 Rfe8 {½-½ Goumas,G (2427)-Holm,K (2463) Seville op 47th 2022 (5)}) 12. Qg4 {[%emt 0:19:30] [#]} g5 $1 {[%emt 0:18:30]} 13. Bd2 {[%emt 0:12:30]} ({Reject} 13. Bxg5 Rg8 14. h4 (14. Nxe6 $2 Qb6 $19) 14... h6 $17) (13. Be3 $5) 13... Nxe5 {[%emt 0:12:30]} 14. Qg3 {[%emt 0:00:30]} Nc4 {[%emt 0:00:30]} (14... Qc7 $15 {should be considered.}) 15. b4 {[%emt 0:00:30]} Qa4 {[%emt 0:00:30]} (15... Qd8 $15 {keeps the upper hand.} 16. Bxc4 dxc4) 16. Bxc4 {[%emt 0:00:30]} (16. Bxg5 Rg8 17. Bxc4 dxc4 $19 18. f4 h6 $17) 16... dxc4 {[%emt 0:00:30]} 17. Qf3 $2 {[%emt 0:00:30]} (17. h4 $16) 17... Qd7 {[%emt 0:07:09]} 18. Rd1 {[%emt 0:07:30]} (18. O-O $15) 18... e5 {[%emt 0:03:05]} 19. Ne2 {[%emt 0:06:30]} Qf5 {[%emt 0:02:08]} 20. Qd5 $17 {[%emt 0:05:30]} Qe6 {[%emt 0:00:52]} 21. Be3 {[%emt 0:06:30]} Qxd5 {[%emt 0:01:30]} 22. Rxd5 {[%emt 0:00:30]} f6 {[%emt 0:00:00]} 23. g3 {[%emt 0:02:30]} Bd7 {[%emt 0:01:13]} 24. Rd2 {[%emt 0:01:30]} Bc6 {[%emt 0:00:30]} 25. O-O {[%emt 0:00:00]} Bf3 {[%emt 0:04:21]} 26. h3 {[%emt 0:00:00]} Kf7 {[%emt 0:00:30]} 27. Kh2 {[%emt 0:00:30]} Rad8 {[%emt 0:00:30]} 28. Ng1 {[%emt 0:00:30]} Rxd2 {[%emt 0:00:30]} 29. Bxd2 {[%emt 0:00:30]} Bc6 {[%emt 0:00:39]} 30. f4 {[%emt 0:02:30]} Rd8 {[%emt 0:00:30]} 31. Bc1 {[%emt 0:00:30]} gxf4 {[%emt 0:00:19]} 32. gxf4 {[%emt 0:00:30]} e4 {[%emt 0:00:30]} 33. Ne2 {[%emt 0:00:30]} Rd3 {[%emt 0:00:30]} 34. Re1 {[%emt 0:00:30]} Bd7 {[%emt 0:01:17]} 0-1

[Event "Turkish-ch Youth U15 2024"]
[Site "Belek Antalya"]
[Date "2024.01.26"]
[Round "8"]
[White "Gedik, Eylul Ceren"]
[Black "Oztay, Rezzan"]
[Result "1-0"]
[ECO "A28"]
[WhiteElo "1479"]
[BlackElo "1388"]
[Annotator "NA RC COMBH"]
[PlyCount "87"]
[EventDate "2024.01.21"]
[EventType "swiss"]
[EventCountry "TUR"]
[SourceTitle "playchess.com"]
[Source "ChessBase"]
[SourceQuality "1"]
[TimeControl "5400+30"]

1. c4 {[%emt 0:01:00]} Nf6 {[%emt 0:01:00]} 2. Nc3 {[%emt 0:00:00]} e5 {[%emt 0:00:30]} 3. d3 {[%emt 0:12:00]} Bc5 {[%emt 0:00:30]} 4. Nf3 {[%emt 0:01:30]} Nc6 {[%emt 0:07:30]} 5. e3 {[%emt 0:00:30]} O-O {[%emt 0:01:30]} 6. Be2 {[%emt 0:00:00]} d5 {[%emt 0:01:30]} 7. cxd5 {[%emt 0:01:00]} Nxd5 {[%emt 0:00:30]} 8. O-O {[%emt 0:05:30]} Be6 {[%emt 0:07:30]} 9. a3 {[%emt 0:06:30]} f5 {[%emt 0:03:30]} 10. Nxd5 {[%emt 0:02:30]} Bxd5 {[%emt 0:05:30]} 11. b4 {[%emt 0:08:30]} Bd6 {[%emt 0:01:30]} 12. Bb2 {[%emt 0:06:30]} Qe8 {[%emt 0:04:30]} 13. Qc2 {[%emt 0:06:30]} e4 {[%emt 0:06:30]} 14. dxe4 {[%emt 0:08:30]} Bxe4 {[%emt 0:01:30]} 15. Qb3+ {[%emt 0:02:30]} Kh8 {[%emt 0:00:30]} 16. Nd2 {[%emt 0:03:30]} f4 {[%emt 0:03:30]} 17. Nxe4 {[%emt 0:06:30]} Qxe4 {[%emt 0:00:30]} 18. Bf3 {[%emt 0:00:30]} Qg6 {[%emt 0:01:30]} 19. exf4 {[%emt 0:03:30]} Rxf4 {[%emt 0:00:30]} 20. g3 {[%emt 0:04:48]} Raf8 {[%emt 0:03:30]} 21. Bg2 {[%emt 0:00:13]} Rg4 {[%emt 0:03:30]} 22. Rfe1 {[%emt 0:02:45]} h5 {[%emt 0:05:30]} 23. Re6 {[%emt 0:01:41]} Qh7 {[%emt 0:06:30]} 24. Qe3 {[%emt 0:05:14]} Rg6 {[%emt 0:05:30]} 25. Rxg6 {[%emt 0:00:30]} Qxg6 {[%emt 0:00:30]} 26. Be4 {[%emt 0:00:30]} Qe6 {[%emt 0:01:30]} 27. Qg5 {[%emt 0:02:34]} Be5 {[%emt 0:06:30]} 28. Bc1 {[%emt 0:01:34]} Qf7 {[%emt 0:01:30]} 29. Ra2 {[%emt 0:04:29]} Bf6 {[%emt 0:01:27]} 30. Qf5 {[%emt 0:00:30]} g5 {[%emt 0:00:30]} 31. Bxg5 {[%emt 0:00:30]} Bxg5 {[%emt 0:00:30]} 32. Qxg5 {[%emt 0:00:30]} Re8 {[%emt 0:09:30]} 33. Re2 {[%emt 0:00:56]} Re5 {[%emt 0:00:30]} 34. Qh6+ {[%emt 0:00:30]} Kg8 {[%emt 0:00:30]} 35. f4 {[%emt 0:00:30]} Re7 {[%emt 0:00:30]} 36. Qg5+ {[%emt 0:00:30]} Kf8 {[%emt 0:02:18]} 37. Bd5 {[%emt 0:01:51]} Qh7 {[%emt 0:02:56]} 38. Qf6+ {[%emt 0:00:38]} Ke8 {[%emt 0:00:30]} 39. Bxc6+ {[%emt 0:00:00]} bxc6 {[%emt 0:00:32]} 40. Qxc6+ {[%emt 0:00:00]} Kd8 {[%emt 0:00:36]} 41. Qf6 {[%emt 0:00:00]} Ke8 {[%emt 0:00:51]} 42. Qxe7+ {[%emt 0:00:30]} Qxe7 {[%emt 0:00:03]} 43. Rxe7+ {[%emt 0:00:00]} Kxe7 {[%emt 0:00:31]} 44. Kf2 {[%emt 0:00:00]} 1-0